[Event "Early-Titled-Tuesday-Blitz-March-05-2024"]
[Site "Chess.com"]
[Date "2024.03.05"]
[Round "4"]
[White "whiteglovethief"]
[Black "rikchessmx"]
[Result "1-0"]
[WhiteElo "2478"]
[BlackElo "2273"]
[TimeControl "180+1"]
[EndTime "8:40:05 PST"]
[Termination "whiteglovethief won by resignation"]

1. d4 {[%clk 0:03:00.9]} 1... Nf6 {[%clk 0:02:59.4]} 2. c4 {[%clk 0:03:01]} 2...
e6 {[%clk 0:02:59.4]} 3. Nf3 {[%clk 0:03:00.3]} 3... d5 {[%clk 0:02:57.1]} 4. g3
{[%clk 0:02:59.7]} 4... Nbd7 {[%clk 0:02:55.8]} 5. Bg2 {[%clk 0:02:59.5]} 5...
dxc4 {[%clk 0:02:52.8]} 6. O-O {[%clk 0:03:00]} 6... c6 {[%clk 0:02:51.4]} 7.
Nfd2 {[%clk 0:02:55.4]} 7... Nb6 {[%clk 0:02:24.5]} 8. e3 {[%clk 0:02:54.3]}
8... Nfd5 {[%clk 0:02:21.2]} 9. a4 {[%clk 0:02:51.1]} 9... a5 {[%clk 0:02:15.2]}
10. Na3 {[%clk 0:02:50.3]} 10... Bxa3 {[%clk 0:02:14.2]} 11. Rxa3 {[%clk
0:02:49.8]} 11... O-O {[%clk 0:01:48.1]} 12. Qe2 {[%clk 0:02:49.1]} 12... Qe7
{[%clk 0:01:40.8]} 13. Nxc4 {[%clk 0:02:47.8]} 13... Nxc4 {[%clk 0:01:40.2]} 14.
Qxc4 {[%clk 0:02:48.7]} 14... Bd7 {[%clk 0:01:38.5]} 15. Bd2 {[%clk 0:02:44.8]}
15... Nb4 {[%clk 0:01:36.3]} 16. Rb3 {[%clk 0:02:16.1]} 16... b5 {[%clk
0:01:30.1]} 17. axb5 {[%clk 0:02:10.1]} 17... cxb5 {[%clk 0:01:29.8]} 18. Qc5
{[%clk 0:01:45.7]} 18... Qxc5 {[%clk 0:01:22.3]} 19. dxc5 {[%clk 0:01:46.6]}
19... Rac8 {[%clk 0:01:21.6]} 20. Bxb4 {[%clk 0:01:45.1]} 20... axb4 {[%clk
0:01:20.5]} 21. Rc1 {[%clk 0:01:45.1]} 21... Bc6 {[%clk 0:01:19.2]} 22. Rxb4
{[%clk 0:01:39.5]} 22... Bxg2 {[%clk 0:01:18.6]} 23. Kxg2 {[%clk 0:01:40.1]}
23... Rb8 {[%clk 0:01:18.5]} 24. c6 {[%clk 0:01:34.2]} 24... Rfc8 {[%clk
0:01:18.5]} 25. c7 {[%clk 0:01:34.3]} 25... Rb7 {[%clk 0:01:17]} 26. Rd4 {[%clk
0:01:34.8]} 1-0

[Event "Early-Titled-Tuesday-Blitz-March-05-2024"]
[Site "Chess.com"]
[Date "2024.03.05"]
[Round "4"]
[White "sergeikim"]
[Black "abc_xyz4744"]
[Result "0-1"]
[WhiteElo "2588"]
[BlackElo "2444"]
[TimeControl "180+1"]
[EndTime "8:40:16 PST"]
[Termination "abc_xyz4744 won by resignation"]

1. d4 {[%clk 0:03:00.9]} 1... d5 {[%clk 0:02:57.3]} 2. c4 {[%clk 0:03:01]} 2...
c6 {[%clk 0:02:56.6]} 3. cxd5 {[%clk 0:02:59.3]} 3... cxd5 {[%clk 0:02:57.5]} 4.
Bf4 {[%clk 0:02:59.3]} 4... Nf6 {[%clk 0:02:57.8]} 5. e3 {[%clk 0:02:59.6]} 5...
Nc6 {[%clk 0:02:57.6]} 6. Nc3 {[%clk 0:02:58.3]} 6... Bf5 {[%clk 0:02:57.8]} 7.
Bd3 {[%clk 0:02:54.6]} 7... Bxd3 {[%clk 0:02:57.2]} 8. Qxd3 {[%clk 0:02:54.6]}
8... e6 {[%clk 0:02:57.8]} 9. Nf3 {[%clk 0:02:53.8]} 9... Bd6 {[%clk 0:02:58.1]}
10. Bg5 {[%clk 0:02:50.8]} 10... h6 {[%clk 0:02:56.5]} 11. Bh4 {[%clk
0:02:50.1]} 11... O-O {[%clk 0:02:56.3]} 12. O-O {[%clk 0:02:48.8]} 12... Be7
{[%clk 0:02:56.4]} 13. Qb5 {[%clk 0:02:40.9]} 13... Rb8 {[%clk 0:02:52.5]} 14.
Bg3 {[%clk 0:02:33]} 14... a6 {[%clk 0:02:49.3]} 15. Qa4 {[%clk 0:02:29.9]}
15... Bd6 {[%clk 0:02:48.7]} 16. Rfc1 {[%clk 0:02:22.5]} 16... Bxg3 {[%clk
0:02:43.1]} 17. hxg3 {[%clk 0:02:22]} 17... b5 {[%clk 0:02:09.8]} 18. Qd1 {[%clk
0:01:58.4]} 18... Qb6 {[%clk 0:02:08.8]} 19. a3 {[%clk 0:01:52.1]} 19... Rfc8
{[%clk 0:02:08]} 20. b4 {[%clk 0:01:50]} 20... Ne8 {[%clk 0:02:04.3]} 21. a4
{[%clk 0:01:41.8]} 21... Nxb4 {[%clk 0:01:58.7]} 22. axb5 {[%clk 0:01:41.1]}
22... axb5 {[%clk 0:01:59.6]} 23. Rab1 {[%clk 0:01:38.4]} 23... Qa5 {[%clk
0:01:44.1]} 24. Ne5 {[%clk 0:01:33.3]} 24... Na2 {[%clk 0:01:28.3]} 25. Nxa2
{[%clk 0:01:30.3]} 25... Qxa2 {[%clk 0:01:26.7]} 26. Rxc8 {[%clk 0:01:27.5]}
26... Rxc8 {[%clk 0:01:27.6]} 27. Rxb5 {[%clk 0:01:18.3]} 27... Nd6 {[%clk
0:01:23.9]} 28. Rc5 {[%clk 0:01:13.8]} 28... Rxc5 {[%clk 0:01:20.5]} 29. dxc5
{[%clk 0:01:13.6]} 29... Ne4 {[%clk 0:01:21.1]} 30. Qf3 {[%clk 0:01:07.1]} 30...
Qa1+ {[%clk 0:01:17.3]} 31. Kh2 {[%clk 0:01:06.4]} 31... Qxe5 {[%clk 0:01:18.2]}
32. c6 {[%clk 0:01:05.4]} 32... Qc7 {[%clk 0:01:16.3]} 33. Qf4 {[%clk
0:01:03.5]} 33... Qxc6 {[%clk 0:01:15.5]} 34. Qb8+ {[%clk 0:01:03.6]} 34... Kh7
{[%clk 0:01:15.8]} 35. f3 {[%clk 0:01:04.5]} 35... Qd6 {[%clk 0:01:12.8]} 36.
Qe8 {[%clk 0:01:02.7]} 36... Qxg3+ {[%clk 0:01:12.1]} 37. Kg1 {[%clk 0:01:01.9]}
37... Ng5 {[%clk 0:01:10.6]} 0-1

[Event "Early-Titled-Tuesday-Blitz-March-05-2024"]
[Site "Chess.com"]
[Date "2024.03.05"]
[Round "4"]
[White "Szparu"]
[Black "RedFirePanda"]
[Result "1-0"]
[WhiteElo "2776"]
[BlackElo "2548"]
[TimeControl "180+1"]
[EndTime "8:40:17 PST"]
[Termination "Szparu won by checkmate"]

1. e4 {[%clk 0:02:57.2]} 1... d5 {[%clk 0:02:59.7]} 2. exd5 {[%clk 0:02:53.4]}
2... Qxd5 {[%clk 0:03:00.6]} 3. Nc3 {[%clk 0:02:52.9]} 3... Qd8 {[%clk 0:02:57]}
4. d4 {[%clk 0:02:52.6]} 4... c6 {[%clk 0:02:52.7]} 5. Bc4 {[%clk 0:02:53]} 5...
Bf5 {[%clk 0:02:51.7]} 6. g4 {[%clk 0:02:50.2]} 6... Bg6 {[%clk 0:02:48.6]} 7.
h4 {[%clk 0:02:50.2]} 7... h6 {[%clk 0:02:40.3]} 8. Nge2 {[%clk 0:02:47.7]} 8...
e6 {[%clk 0:02:36.7]} 9. Nf4 {[%clk 0:02:47.9]} 9... Bh7 {[%clk 0:02:36.8]} 10.
g5 {[%clk 0:02:48.4]} 10... Ne7 {[%clk 0:02:10.5]} 11. gxh6 {[%clk 0:02:29.2]}
11... gxh6 {[%clk 0:02:11.4]} 12. Qh5 {[%clk 0:02:28.7]} 12... Ng6 {[%clk
0:01:43.2]} 13. Bxe6 {[%clk 0:02:17.5]} 13... Qe7 {[%clk 0:01:35.4]} 14. Kd1
{[%clk 0:02:17.9]} 14... Nxf4 {[%clk 0:01:29.3]} 15. Bxf4 {[%clk 0:02:17.4]}
15... Bg6 {[%clk 0:01:21.8]} 16. Qe5 {[%clk 0:02:03.4]} 16... f6 {[%clk
0:00:49.4]} 17. Qe3 {[%clk 0:01:57.4]} 17... Nd7 {[%clk 0:00:37.2]} 18. h5
{[%clk 0:01:56.1]} 18... Bf7 {[%clk 0:00:32]} 19. Bf5 {[%clk 0:01:56.2]} 19...
Qxe3 {[%clk 0:00:31]} 20. fxe3 {[%clk 0:01:57.1]} 20... Be7 {[%clk 0:00:20.7]}
21. Rg1 {[%clk 0:01:56.2]} 21... Rg8 {[%clk 0:00:16.6]} 22. Rxg8+ {[%clk
0:01:55.5]} 22... Bxg8 {[%clk 0:00:16.7]} 23. Kd2 {[%clk 0:01:56.4]} 23... Bf7
{[%clk 0:00:13.8]} 24. Rg1 {[%clk 0:01:57]} 24... Bxh5 {[%clk 0:00:09.2]} 25.
Bxh6 {[%clk 0:01:57.2]} 25... Nf8 {[%clk 0:00:09.8]} 26. Rg8 {[%clk 0:01:56.3]}
26... Kf7 {[%clk 0:00:10.1]} 27. Rg7+ {[%clk 0:01:56.8]} 27... Ke8 {[%clk
0:00:09]} 28. Ne4 {[%clk 0:01:57.7]} 28... Bf7 {[%clk 0:00:06.3]} 29. b3 {[%clk
0:01:57.5]} 29... Rd8 {[%clk 0:00:02.8]} 30. c4 {[%clk 0:01:57.6]} 30... b6
{[%clk 0:00:02.1]} 31. Ke2 {[%clk 0:01:57.4]} 31... a5 {[%clk 0:00:02.4]} 32. a4
{[%clk 0:01:57.3]} 32... b5 {[%clk 0:00:02]} 33. axb5 {[%clk 0:01:57.5]} 33...
cxb5 {[%clk 0:00:02.9]} 34. d5 {[%clk 0:01:58.4]} 34... bxc4 {[%clk 0:00:03]}
35. bxc4 {[%clk 0:01:59.3]} 35... Bd6 {[%clk 0:00:03.5]} 36. Nxf6+ {[%clk
0:01:59.3]} 36... Ke7 {[%clk 0:00:04.2]} 37. Bg5 {[%clk 0:02:00]} 37... Rb8
{[%clk 0:00:03.3]} 38. Ne4+ {[%clk 0:01:56.3]} 38... Ke8 {[%clk 0:00:02]} 39.
Nxd6# {[%clk 0:01:56.7]} 1-0

[Event "Early-Titled-Tuesday-Blitz-March-05-2024"]
[Site "Chess.com"]
[Date "2024.03.05"]
[Round "4"]
[White "DavidGavrilescu18"]
[Black "ATM622"]
[Result "1-0"]
[WhiteElo "2760"]
[BlackElo "2539"]
[TimeControl "180+1"]
[EndTime "8:40:19 PST"]
[Termination "DavidGavrilescu18 won on time"]

1. e4 {[%clk 0:02:57.9]} 1... c6 {[%clk 0:02:54.1]} 2. Nc3 {[%clk 0:02:54.7]}
2... d5 {[%clk 0:02:55]} 3. d4 {[%clk 0:02:55.1]} 3... dxe4 {[%clk 0:02:54.4]}
4. Nxe4 {[%clk 0:02:56]} 4... Bf5 {[%clk 0:02:52.7]} 5. Ng5 {[%clk 0:02:55.2]}
5... Nf6 {[%clk 0:02:51.6]} 6. N1f3 {[%clk 0:02:55]} 6... Nbd7 {[%clk
0:02:50.3]} 7. Bc4 {[%clk 0:02:52.7]} 7... e6 {[%clk 0:02:49.9]} 8. O-O {[%clk
0:02:53.3]} 8... h6 {[%clk 0:02:43.8]} 9. Nxf7 {[%clk 0:02:50.5]} 9... Kxf7
{[%clk 0:02:44.7]} 10. Re1 {[%clk 0:02:50.5]} 10... Bd6 {[%clk 0:02:39]} 11. h3
{[%clk 0:02:50]} 11... b5 {[%clk 0:02:36.8]} 12. Bb3 {[%clk 0:02:48.5]} 12...
Re8 {[%clk 0:02:31.3]} 13. g4 {[%clk 0:02:37.1]} 13... Be4 {[%clk 0:02:31.2]}
14. g5 {[%clk 0:02:31.9]} 14... Bxf3 {[%clk 0:02:21.4]} 15. Qxf3 {[%clk
0:02:32.8]} 15... hxg5 {[%clk 0:02:21.5]} 16. Bxg5 {[%clk 0:02:31.5]} 16... Nf8
{[%clk 0:02:12.1]} 17. Re4 {[%clk 0:02:24.2]} 17... Kg8 {[%clk 0:02:05.2]} 18.
Rae1 {[%clk 0:02:23.5]} 18... N8h7 {[%clk 0:01:11.8]} 19. Rxe6 {[%clk
0:02:13.7]} 19... Rxe6 {[%clk 0:01:06.5]} 20. Rxe6 {[%clk 0:02:14.6]} 20... Nxg5
{[%clk 0:00:47.6]} 21. Rxd6+ {[%clk 0:02:14.8]} 21... Kh8 {[%clk 0:00:31.4]} 22.
Rxd8+ {[%clk 0:02:14.4]} 22... Rxd8 {[%clk 0:00:31.7]} 23. Qf5 {[%clk
0:02:13.2]} 23... Nge4 {[%clk 0:00:26.2]} 24. c3 {[%clk 0:02:10.9]} 24... Nd6
{[%clk 0:00:22.3]} 25. Qf3 {[%clk 0:02:08.1]} 25... Nde4 {[%clk 0:00:18.6]} 26.
Bc2 {[%clk 0:02:07.9]} 26... Re8 {[%clk 0:00:18.9]} 27. Bxe4 {[%clk 0:02:07.7]}
27... Rxe4 {[%clk 0:00:19]} 28. Kg2 {[%clk 0:02:07.9]} 28... Kg8 {[%clk
0:00:17.6]} 29. Qf5 {[%clk 0:02:08]} 29... Kf7 {[%clk 0:00:16.9]} 30. Qc8 {[%clk
0:02:08]} 30... Nd5 {[%clk 0:00:11.2]} 31. Qxc6 {[%clk 0:02:07.4]} 31... Nf6
{[%clk 0:00:05.5]} 32. Qxb5 {[%clk 0:02:07.3]} 32... Kg6 {[%clk 0:00:04.9]} 33.
d5 {[%clk 0:02:07]} 33... Re5 {[%clk 0:00:02.8]} 34. Qd3+ {[%clk 0:02:06.5]}
34... Kf7 {[%clk 0:00:02.2]} 35. d6 {[%clk 0:02:07]} 35... Ke8 {[%clk
0:00:02.5]} 36. c4 {[%clk 0:02:06.5]} 36... Kd7 {[%clk 0:00:02.6]} 37. b4 {[%clk
0:02:06.7]} 37... Ne4 {[%clk 0:00:02.2]} 38. c5 {[%clk 0:02:05.6]} 38... Nf6
{[%clk 0:00:02]} 39. Qb5+ {[%clk 0:02:05]} 39... Ke6 {[%clk 0:00:01.9]} 40. Qc6
{[%clk 0:02:04.3]} 40... Rg5+ {[%clk 0:00:01.9]} 41. Kf1 {[%clk 0:02:04.3]} 1-0

[Event "Early-Titled-Tuesday-Blitz-March-05-2024"]
[Site "Chess.com"]
[Date "2024.03.05"]
[Round "4"]
[White "LiadCuba"]
[Black "PepeCuenca"]
[Result "0-1"]
[WhiteElo "2515"]
[BlackElo "2696"]
[TimeControl "180+1"]
[EndTime "8:40:26 PST"]
[Termination "PepeCuenca won on time"]

1. d4 {[%clk 0:02:50]} 1... Nf6 {[%clk 0:02:59.1]} 2. c4 {[%clk 0:02:50.2]} 2...
g6 {[%clk 0:02:59.3]} 3. Nc3 {[%clk 0:02:46.7]} 3... Bg7 {[%clk 0:02:59.5]} 4.
e4 {[%clk 0:02:46]} 4... d6 {[%clk 0:02:59.4]} 5. Be2 {[%clk 0:02:45.7]} 5...
O-O {[%clk 0:02:59.1]} 6. Be3 {[%clk 0:02:45.1]} 6... Nc6 {[%clk 0:02:59.7]} 7.
h4 {[%clk 0:02:14]} 7... e5 {[%clk 0:02:51.8]} 8. d5 {[%clk 0:02:11.8]} 8... Nd4
{[%clk 0:02:52.3]} 9. Bxd4 {[%clk 0:02:07]} 9... exd4 {[%clk 0:02:52.6]} 10.
Qxd4 {[%clk 0:02:07.9]} 10... Re8 {[%clk 0:02:51.7]} 11. Qd3 {[%clk 0:01:50]}
11... Nd7 {[%clk 0:02:25.9]} 12. f3 {[%clk 0:01:30.8]} 12... c6 {[%clk
0:02:16.2]} 13. dxc6 {[%clk 0:01:24]} 13... bxc6 {[%clk 0:02:14.3]} 14. O-O-O
{[%clk 0:01:20.7]} 14... Qa5 {[%clk 0:01:57.9]} 15. h5 {[%clk 0:00:59.8]} 15...
Rb8 {[%clk 0:01:51.9]} 16. hxg6 {[%clk 0:00:51.1]} 16... hxg6 {[%clk 0:01:52.4]}
17. Qc2 {[%clk 0:00:36]} 17... Nc5 {[%clk 0:01:43.5]} 18. Rxd6 {[%clk
0:00:19.3]} 18... Be6 {[%clk 0:01:23]} 19. Rxc6 {[%clk 0:00:16.9]} 19... Rxb2
{[%clk 0:01:18.8]} 20. Qxb2 {[%clk 0:00:11.1]} 20... Bxc3 {[%clk 0:01:15.4]} 21.
Qc2 {[%clk 0:00:03.7]} 21... Qa3+ {[%clk 0:01:11.2]} 0-1

[Event "Early-Titled-Tuesday-Blitz-March-05-2024"]
[Site "Chess.com"]
[Date "2024.03.05"]
[Round "4"]
[White "ViIIagra"]
[Black "Kunalm64"]
[Result "0-1"]
[WhiteElo "2917"]
[BlackElo "2621"]
[TimeControl "180+1"]
[EndTime "8:40:35 PST"]
[Termination "Kunalm64 won by resignation"]

1. Nf3 {[%clk 0:02:56.5]} 1... Nf6 {[%clk 0:02:59.5]} 2. e3 {[%clk 0:02:55.2]}
2... d5 {[%clk 0:02:52.2]} 3. h3 {[%clk 0:02:52.1]} 3... a6 {[%clk 0:02:32.4]}
4. c4 {[%clk 0:02:51.3]} 4... e6 {[%clk 0:02:29.4]} 5. b3 {[%clk 0:02:51.7]}
5... Be7 {[%clk 0:02:29.1]} 6. Bb2 {[%clk 0:02:52]} 6... O-O {[%clk 0:02:29.6]}
7. g4 {[%clk 0:02:52.3]} 7... c5 {[%clk 0:02:27]} 8. g5 {[%clk 0:02:52.5]} 8...
Ne4 {[%clk 0:02:26.8]} 9. h4 {[%clk 0:02:53.1]} 9... Nc6 {[%clk 0:02:24.2]} 10.
d3 {[%clk 0:02:53.6]} 10... Qa5+ {[%clk 0:02:17.7]} 11. Nfd2 {[%clk 0:02:53.8]}
11... Nxd2 {[%clk 0:02:17.5]} 12. Qxd2 {[%clk 0:02:53.4]} 12... Qxd2+ {[%clk
0:02:14]} 13. Nxd2 {[%clk 0:02:54.3]} 13... Rd8 {[%clk 0:02:09.1]} 14. Ke2
{[%clk 0:02:54]} 14... b5 {[%clk 0:02:07.5]} 15. Bg2 {[%clk 0:02:54.1]} 15...
Bb7 {[%clk 0:02:06.7]} 16. Ba3 {[%clk 0:02:52]} 16... Bf8 {[%clk 0:01:29.7]} 17.
Rac1 {[%clk 0:02:48.6]} 17... Ne5 {[%clk 0:01:23.6]} 18. cxd5 {[%clk 0:02:46.9]}
18... Bxd5 {[%clk 0:01:21.5]} 19. Bxd5 {[%clk 0:02:19.2]} 19... Rxd5 {[%clk
0:01:22.4]} 20. Bxc5 {[%clk 0:02:19.9]} 20... Nxd3 {[%clk 0:01:10.5]} 21. Bxf8
{[%clk 0:02:19.6]} 21... Nxc1+ {[%clk 0:01:10.6]} 22. Rxc1 {[%clk 0:02:20.5]}
22... Kxf8 {[%clk 0:01:10.3]} 23. Rc6 {[%clk 0:02:21.4]} 23... Rdd8 {[%clk
0:00:58.1]} 24. Ne4 {[%clk 0:02:15.9]} 24... Rdc8 {[%clk 0:00:58]} 25. Rb6
{[%clk 0:02:16.6]} 25... Rc2+ {[%clk 0:00:41.8]} 26. Kf3 {[%clk 0:02:16.8]}
26... Rxa2 {[%clk 0:00:41.9]} 27. Rb7 {[%clk 0:02:17.5]} 27... Kg8 {[%clk
0:00:42.1]} 28. Nd6 {[%clk 0:02:17.7]} 28... Rf8 {[%clk 0:00:42.1]} 29. Ra7
{[%clk 0:02:18.4]} 29... Rb2 {[%clk 0:00:39.8]} 30. Rxa6 {[%clk 0:02:14.4]}
30... Rxb3 {[%clk 0:00:40.2]} 31. Rb6 {[%clk 0:02:15]} 31... b4 {[%clk
0:00:40.4]} 32. Rb7 {[%clk 0:02:15.7]} 32... Rb1 {[%clk 0:00:40.3]} 33. h5
{[%clk 0:02:16.1]} 33... h6 {[%clk 0:00:34]} 34. gxh6 {[%clk 0:02:14.1]} 34...
gxh6 {[%clk 0:00:34.3]} 35. Ke4 {[%clk 0:02:13.7]} 35... b3 {[%clk 0:00:33.3]}
36. f4 {[%clk 0:02:13.7]} 36... b2 {[%clk 0:00:30.3]} 37. Nc4 {[%clk 0:02:13.8]}
37... Rc8 {[%clk 0:00:30.2]} 38. Nd6 {[%clk 0:02:08.5]} 38... Rd1 {[%clk
0:00:13.4]} 39. Nxc8 {[%clk 0:02:05]} 39... b1=Q+ {[%clk 0:00:13.4]} 40. Rxb1
{[%clk 0:02:04.7]} 40... Rxb1 {[%clk 0:00:14]} 41. Kf3 {[%clk 0:02:02]} 41...
Rh1 {[%clk 0:00:13.2]} 42. Kg4 {[%clk 0:02:01.9]} 42... f5+ {[%clk 0:00:12.8]}
43. Kg3 {[%clk 0:02:02.4]} 43... Rxh5 {[%clk 0:00:12.6]} 44. Kg2 {[%clk
0:02:02.9]} 44... Kg7 {[%clk 0:00:12.2]} 45. Nd6 {[%clk 0:01:58.1]} 45... Rh4
{[%clk 0:00:12.2]} 46. Nc4 {[%clk 0:01:58]} 46... Rg4+ {[%clk 0:00:12.1]} 47.
Kh2 {[%clk 0:01:58.6]} 47... Kf6 {[%clk 0:00:11.3]} 0-1

[Event "Early-Titled-Tuesday-Blitz-March-05-2024"]
[Site "Chess.com"]
[Date "2024.03.05"]
[Round "4"]
[White "effefe"]
[Black "bazar-wokzal"]
[Result "0-1"]
[WhiteElo "2412"]
[BlackElo "2601"]
[TimeControl "180+1"]
[EndTime "8:40:35 PST"]
[Termination "bazar-wokzal won by resignation"]

1. d4 {[%clk 0:02:58]} 1... Nf6 {[%clk 0:02:57.9]} 2. c4 {[%clk 0:02:58.7]} 2...
Nc6 {[%clk 0:02:57.6]} 3. Nc3 {[%clk 0:02:57.6]} 3... e5 {[%clk 0:02:57.5]} 4.
d5 {[%clk 0:02:57.5]} 4... Ne7 {[%clk 0:02:57.8]} 5. e4 {[%clk 0:02:58.2]} 5...
Ng6 {[%clk 0:02:58.1]} 6. h4 {[%clk 0:02:52.8]} 6... h5 {[%clk 0:02:53.3]} 7.
Bg5 {[%clk 0:02:51.9]} 7... Be7 {[%clk 0:02:53]} 8. Be2 {[%clk 0:02:50.4]} 8...
d6 {[%clk 0:02:48.7]} 9. Nf3 {[%clk 0:02:44.2]} 9... Ng4 {[%clk 0:02:46.4]} 10.
Bxe7 {[%clk 0:02:41.9]} 10... Qxe7 {[%clk 0:02:38.4]} 11. Qc2 {[%clk 0:02:40.1]}
11... O-O {[%clk 0:02:28.8]} 12. O-O-O {[%clk 0:02:28]} 12... Nxf2 {[%clk
0:02:26.5]} 13. Rdf1 {[%clk 0:02:23.3]} 13... Nxh1 {[%clk 0:02:25.8]} 14. Rxh1
{[%clk 0:02:24.2]} 14... f5 {[%clk 0:02:16]} 15. Ng5 {[%clk 0:02:23.2]} 15...
Nxh4 {[%clk 0:02:08.7]} 16. Ne6 {[%clk 0:02:23.1]} 16... Bxe6 {[%clk 0:02:03.2]}
17. dxe6 {[%clk 0:02:24]} 17... c6 {[%clk 0:02:00.2]} 18. g3 {[%clk 0:02:13.2]}
18... Qg5+ {[%clk 0:01:55.3]} 19. Kb1 {[%clk 0:02:11.4]} 19... Qxg3 {[%clk
0:01:53.9]} 20. Bxh5 {[%clk 0:02:08.2]} 20... g6 {[%clk 0:01:44.4]} 21. Ne2
{[%clk 0:01:34.9]} 21... Qg5 {[%clk 0:01:36.2]} 22. exf5 {[%clk 0:01:05.3]}
22... Rxf5 {[%clk 0:01:17.1]} 23. Bxg6 {[%clk 0:00:26.8]} 23... Nxg6 {[%clk
0:00:58.4]} 24. Rg1 {[%clk 0:00:25]} 24... Qxg1+ {[%clk 0:00:57.2]} 0-1

[Event "Early-Titled-Tuesday-Blitz-March-05-2024"]
[Site "Chess.com"]
[Date "2024.03.05"]
[Round "4"]
[White "margarita_2703"]
[Black "chucksterf10"]
[Result "0-1"]
[WhiteElo "2394"]
[BlackElo "2574"]
[TimeControl "180+1"]
[EndTime "8:40:36 PST"]
[Termination "chucksterf10 won by resignation"]

1. e4 {[%clk 0:03:00.9]} 1... a6 {[%clk 0:02:56.5]} 2. d4 {[%clk 0:02:27.5]}
2... c6 {[%clk 0:02:51.4]} 3. Bd3 {[%clk 0:02:12.8]} 3... d5 {[%clk 0:02:51.3]}
4. e5 {[%clk 0:02:13.3]} 4... h5 {[%clk 0:02:50.9]} 5. f4 {[%clk 0:02:12]} 5...
Bg4 {[%clk 0:02:50.8]} 6. Nf3 {[%clk 0:02:11.1]} 6... e6 {[%clk 0:02:51]} 7. O-O
{[%clk 0:02:10.5]} 7... c5 {[%clk 0:02:51.2]} 8. c3 {[%clk 0:02:10.5]} 8... Nc6
{[%clk 0:02:51.7]} 9. Be3 {[%clk 0:02:09]} 9... Qb6 {[%clk 0:02:52]} 10. Qd2
{[%clk 0:02:06.1]} 10... cxd4 {[%clk 0:02:51.6]} 11. Nxd4 {[%clk 0:02:05.5]}
11... Bc5 {[%clk 0:02:49.5]} 12. Na3 {[%clk 0:01:57.8]} 12... Nxd4 {[%clk
0:02:48.1]} 13. cxd4 {[%clk 0:01:56.3]} 13... Bxd4 {[%clk 0:02:49]} 14. Bb5+
{[%clk 0:01:55.7]} 14... axb5 {[%clk 0:02:47.7]} 15. Bxd4 {[%clk 0:01:56.1]}
15... Qa5 {[%clk 0:02:35.9]} 16. Qd3 {[%clk 0:01:39.9]} 16... Ne7 {[%clk
0:02:30]} 17. Nxb5 {[%clk 0:01:38.5]} 17... O-O {[%clk 0:02:29.1]} 18. Nd6
{[%clk 0:01:36.9]} 18... Nf5 {[%clk 0:02:18.7]} 19. Nxb7 {[%clk 0:01:30.4]}
19... Qb4 {[%clk 0:02:17.1]} 20. Bc5 {[%clk 0:01:25.9]} 20... Qxb7 {[%clk
0:02:16]} 21. Bxf8 {[%clk 0:01:26]} 21... Rxf8 {[%clk 0:02:11.2]} 22. Rab1
{[%clk 0:01:25.5]} 22... Qb6+ {[%clk 0:02:00.2]} 23. Kh1 {[%clk 0:01:24.4]}
23... Ne3 {[%clk 0:02:00.6]} 24. Rfe1 {[%clk 0:01:23.3]} 24... Bf5 {[%clk
0:02:00.9]} 25. Qxe3 {[%clk 0:01:20.4]} 25... Qxe3 {[%clk 0:02:00.8]} 26. Rxe3
{[%clk 0:01:21.3]} 26... Bxb1 {[%clk 0:02:01.4]} 27. a4 {[%clk 0:01:21.7]} 27...
d4 {[%clk 0:01:55.6]} 28. Re2 {[%clk 0:01:18.3]} 28... d3 {[%clk 0:01:54.5]} 29.
Rd2 {[%clk 0:01:16.7]} 29... Rc8 {[%clk 0:01:55]} 30. Kg1 {[%clk 0:01:12.6]}
30... Rc2 {[%clk 0:01:54.4]} 31. Rd1 {[%clk 0:01:09]} 31... d2 {[%clk
0:01:54.3]} 32. Kf2 {[%clk 0:01:06.4]} 32... Rxb2 {[%clk 0:01:51.1]} 33. Ke3
{[%clk 0:01:06.6]} 33... Rb4 {[%clk 0:01:30.4]} 34. Kxd2 {[%clk 0:01:04.2]}
34... Be4 {[%clk 0:01:29.3]} 35. Ra1 {[%clk 0:00:57.7]} 35... Bxg2 {[%clk
0:01:28.9]} 36. Kc3 {[%clk 0:00:54.1]} 36... Rxf4 {[%clk 0:01:28.8]} 37. a5
{[%clk 0:00:54.9]} 37... Rf5 {[%clk 0:01:24.2]} 38. a6 {[%clk 0:00:52.3]} 38...
Rxe5 {[%clk 0:01:24.2]} 39. a7 {[%clk 0:00:52.5]} 39... g5 {[%clk 0:01:15.7]}
40. Rb1 {[%clk 0:00:50.4]} 40... Kg7 {[%clk 0:01:12.1]} 41. Rb8 {[%clk
0:00:49.1]} 41... g4 {[%clk 0:01:11.1]} 42. Kd4 {[%clk 0:00:48.2]} 42... Ra5
{[%clk 0:01:10.6]} 0-1

[Event "Early-Titled-Tuesday-Blitz-March-05-2024"]
[Site "Chess.com"]
[Date "2024.03.05"]
[Round "4"]
[White "ploxoi"]
[Black "JiiHart"]
[Result "1-0"]
[WhiteElo "2452"]
[BlackElo "2177"]
[TimeControl "180+1"]
[EndTime "8:40:36 PST"]
[Termination "ploxoi won on time"]

1. d4 {[%clk 0:03:00.9]} 1... d5 {[%clk 0:02:59.5]} 2. c4 {[%clk 0:03:01.1]}
2... c5 {[%clk 0:02:59.5]} 3. cxd5 {[%clk 0:03:00.4]} 3... Qxd5 {[%clk
0:02:58.4]} 4. Nf3 {[%clk 0:03:00.6]} 4... cxd4 {[%clk 0:02:58.3]} 5. Nc3 {[%clk
0:03:01.3]} 5... Qd8 {[%clk 0:02:57.8]} 6. Nxd4 {[%clk 0:03:01.3]} 6... a6
{[%clk 0:02:57]} 7. e4 {[%clk 0:03:00.6]} 7... e5 {[%clk 0:02:56.1]} 8. Nf3
{[%clk 0:02:57.2]} 8... Qxd1+ {[%clk 0:02:55.8]} 9. Nxd1 {[%clk 0:02:57.9]} 9...
Nc6 {[%clk 0:02:54.5]} 10. a3 {[%clk 0:02:52]} 10... Nf6 {[%clk 0:02:52]} 11.
Bd3 {[%clk 0:02:52.2]} 11... Be7 {[%clk 0:02:48.7]} 12. Be3 {[%clk 0:02:51.4]}
12... h6 {[%clk 0:02:46]} 13. Rc1 {[%clk 0:02:50.6]} 13... Be6 {[%clk
0:02:43.5]} 14. h3 {[%clk 0:02:48.4]} 14... O-O {[%clk 0:02:41.3]} 15. Ke2
{[%clk 0:02:41.9]} 15... Rfd8 {[%clk 0:02:35.8]} 16. Nc3 {[%clk 0:02:41.8]}
16... Nd4+ {[%clk 0:02:18]} 17. Bxd4 {[%clk 0:02:39.6]} 17... exd4 {[%clk
0:02:18]} 18. Na4 {[%clk 0:02:39.4]} 18... b5 {[%clk 0:01:55.5]} 19. Nc5 {[%clk
0:02:38.4]} 19... Nh5 {[%clk 0:01:18.6]} 20. g3 {[%clk 0:02:24.3]} 20... Rdc8
{[%clk 0:01:17.6]} 21. Nxe6 {[%clk 0:02:23.3]} 21... fxe6 {[%clk 0:00:56.3]} 22.
Nxd4 {[%clk 0:02:22.6]} 22... Bf6 {[%clk 0:00:54]} 23. Nc6 {[%clk 0:02:03.3]}
23... Rc7 {[%clk 0:00:28]} 24. e5 {[%clk 0:02:02.7]} 24... Bg5 {[%clk
0:00:23.6]} 25. Rc2 {[%clk 0:01:55.6]} 25... Rac8 {[%clk 0:00:22.8]} 26. Nd4
{[%clk 0:01:55.6]} 26... Kf7 {[%clk 0:00:15.8]} 27. Rd1 {[%clk 0:01:52.2]} 27...
Rxc2+ {[%clk 0:00:08.9]} 28. Bxc2 {[%clk 0:01:53.1]} 28... Rc5 {[%clk
0:00:08.1]} 29. f4 {[%clk 0:01:49.6]} 29... Nxg3+ {[%clk 0:00:08]} 30. Kf3
{[%clk 0:01:49.7]} 30... Bxf4 {[%clk 0:00:04.5]} 31. Kxf4 {[%clk 0:01:50.6]}
31... Nh5+ {[%clk 0:00:03.6]} 32. Ke4 {[%clk 0:01:46.1]} 32... Ng3+ {[%clk
0:00:03.2]} 33. Kf3 {[%clk 0:01:44.2]} 33... Nh5 {[%clk 0:00:02.7]} 34. Bb3
{[%clk 0:01:41.4]} 34... Rxe5 {[%clk 0:00:02.2]} 35. Nxe6 {[%clk 0:01:41.2]}
35... Rxe6 {[%clk 0:00:02.3]} 36. Re1 {[%clk 0:01:41.5]} 1-0